bitfinex-derivatives/quotes_BNBF0:USTF0_20251002
["timestamp","ask_amount","ask_price","bid_price","bid_amount"]
[1759400843551,0.54040726,1039.7,1039.3,1.003]
[1759400843748,0.54040726,1039.6,1039.3,1.003]
[1759400843945,0.54040726,1039.5,1039.3,1.003]
[1759400844145,0.86221244,1040.0,1039.3,1.003]
[1759400844349,0.54066533,1039.9,1039.3,1.003]
[1759400844553,0.54066533,1039.8,1039.3,1.003]
[1759400844748,0.54066533,1039.7,1039.3,1.003]
[1759400845046,0.54066533,1039.6,1039.3,1.003]
[1759400845246,0.54066533,1039.5,1039.3,1.003]
[1759400845446,0.86221244,1040.1,1039.3,1.003]
[1759400845648,0.54072691,1040.0,1039.3,1.003]
[1759400845945,0.54072691,1039.9,1039.3,1.003]
[1759400846148,0.54072691,1039.8,1039.3,1.003]
[1759400846347,0.54072691,1039.7,1039.3,1.003]
[1759400846545,0.54072691,1039.6,1039.3,1.003]
[1759400846749,0.54072691,1039.5,1039.3,1.003]
[1759400846950,0.86221244,1040.1,1039.3,1.003]
[1759400847147,0.54085372,1040.0,1039.3,1.003]
[1759400847446,0.54085372,1039.9,1039.3,1.003]
[1759400847747,0.54085372,1039.8,1039.3,1.003]
[1759400848047,0.54085372,1039.7,1039.3,1.003]
[1759400848250,0.54085372,1039.6,1039.3,1.003]
[1759400848450,0.54085372,1039.5,1039.3,1.003]
[1759400848649,0.86221244,1040.2,1039.3,1.003]
[1759400848853,0.54097482,1040.1,1039.3,1.003]
[1759400849054,0.54097482,1040.0,1039.3,1.003]
[1759400849253,0.54097482,1039.9,1039.3,1.003]
[1759400849454,0.54097482,1039.8,1039.3,1.003]
[1759400849654,0.54097482,1039.7,1039.3,1.003]
[1759400849853,0.54097482,1039.6,1039.3,1.003]
[1759400850153,0.54097482,1039.5,1039.3,1.003]
[1759400850350,0.54097482,1039.4,1039.3,1.003]
[1759400850649,0.54097482,1040.1,1039.3,1.003]
[1759400850851,0.54097482,1040.0,1039.3,1.003]
[1759400851054,0.54097482,1039.9,1039.3,1.003]
[1759400851253,0.54097482,1039.8,1039.3,1.003]
[1759400851451,0.54097482,1039.7,1039.3,1.003]
[1759400851652,0.54097482,1039.6,1039.3,1.003]
[1759400851953,0.54097482,1039.5,1039.3,1.003]
[1759400852152,0.54097482,1039.4,1039.3,1.003]
[1759400852655,0.54097482,1040.1,1039.3,1.003]
[1759400852955,0.54097482,1040.0,1039.2,0.744]
[1759400853152,0.54097482,1039.9,1039.2,0.744]
[1759400853356,0.54097482,1039.8,1039.2,0.744]
[1759400853553,0.54097482,1039.7,1039.2,0.744]
[1759400853753,0.54097482,1039.6,1039.2,0.744]
[1759400854056,0.54097482,1039.5,1039.2,0.744]
[1759400854257,0.54097482,1039.4,1039.2,0.744]
[1759400854454,0.86221244,1040.2,1039.2,0.744]
[1759400854756,0.86221244,1040.0,1039.2,0.744]
[1759400854953,1.40343145,1039.9,1039.2,0.744]
[1759400855157,0.54121901,1039.8,1039.2,0.744]
[1759400855355,0.54121901,1039.7,1039.3,0.824]
[1759400855654,0.54121901,1039.6,1039.3,0.824]
[1759400855856,0.54121901,1039.5,1039.3,0.824]
[1759400856054,0.54121901,1039.4,1039.3,0.824]
[1759400873373,0.54121901,1039.4,1039.2,0.744]
[1759400873671,0.54121901,1039.3,1039.2,0.744]
[1759400877070,0.54121901,1039.3,1039.1,1.116]
[1759400877372,0.86221244,1040.1,1039.1,1.116]
[1759400877572,0.54176437,1040.0,1039.1,1.116]
[1759400877868,0.54176437,1039.9,1039.1,1.116]
[1759400878069,0.54176437,1039.8,1039.1,1.116]
[1759400878267,0.54176437,1039.7,1039.1,1.116]
[1759400878468,0.54176437,1039.6,1039.1,1.116]
[1759400878672,0.54176437,1039.5,1039.1,1.116]
[1759400878869,0.54176437,1039.4,1039.1,1.116]
[1759400879069,0.54176437,1039.3,1039.1,1.116]
[1759400879377,0.86221244,1040.1,1039.1,1.116]
[1759400879574,0.54174448,1040.0,1039.1,1.795]
[1759400879767,0.54174448,1039.9,1039.1,1.795]
[1759400879971,0.54174448,1039.8,1039.1,1.795]
[1759400880170,0.54174448,1039.7,1039.1,1.795]
[1759400880369,0.54174448,1039.6,1039.1,1.795]
[1759400880573,0.54174448,1039.5,1039.1,1.795]
[1759400880870,0.54174448,1039.4,1039.1,1.795]
[1759400881068,0.54174448,1039.3,1039.1,1.795]
[1759400881270,0.54174448,1039.2,1039.1,1.795]
[1759400911097,1.40395692,1039.2,1039.1,1.795]
[1759400911304,0.54174448,1039.2,1039.1,1.795]
[1759400914199,1.40395692,1039.2,1039.1,1.795]
[1759400914404,0.54174448,1039.2,1039.1,1.795]
[1759400914603,0.54174448,1039.2,1039.1,1.116]
[1759400914903,1.40395692,1039.2,1039.1,1.116]
[1759400917503,0.54174448,1039.2,1039.1,1.116]
[1759400930914,0.54174448,1039.2,1038.1,0.805]
[1759400931111,0.85401606,1039.0,1038.1,0.805]
[1759400931315,0.54174448,1038.9,1038.1,0.805]
[1759400931514,0.85401606,1039.1,1038.1,0.805]
[1759400932413,0.85401606,1039.4,1038.1,0.805]
[1759400934016,0.85401606,1039.4,1038.2,0.852]
[1759400934814,0.85401606,1039.5,1038.2,0.852]
[1759400935019,0.85401606,1039.4,1038.2,0.852]
[1759400936418,0.85401606,1039.5,1038.2,0.852]
[1759400937919,0.85401606,1039.2,1038.2,0.852]
[1759400938316,0.85401606,1039.1,1038.2,0.852]
[1759400939822,0.85401606,1039.2,1038.2,0.852]
[1759400940124,0.85401606,1039.1,1038.2,0.852]
[1759400941422,0.85401606,1039.2,1038.2,0.852]
[1759400942322,0.85401606,1039.3,1038.2,0.852]
[1759400946225,0.85401606,1039.3,1038.1,0.805]
[1759400948425,0.85401606,1039.4,1038.1,0.805]
[1759400948829,0.85401606,1039.4,1038.2,1.15]
[1759400951028,0.85401606,1039.3,1038.2,1.15]
[1759400952330,0.85401606,1039.3,1038.3,1.087]
[1759400952930,0.85401606,1039.2,1038.3,1.087]
[1759400953129,0.85401606,1039.1,1038.3,1.087]
[1759400953332,0.85401606,1039.0,1038.3,1.087]
[1759400953530,0.85401606,1039.1,1038.3,1.087]
[1759400955733,0.85401606,1039.3,1038.3,1.087]
[1759400957637,0.85401606,1039.1,1038.3,1.087]
[1759400959833,0.85401606,1039.2,1038.3,1.087]
[1759400961536,0.85401606,1039.1,1038.3,1.087]
[1759400964937,0.85401606,1039.2,1038.3,1.087]
[1759400970041,0.85401606,1039.4,1038.3,1.087]
[1759400970237,0.85401606,1039.3,1038.3,1.087]
[1759400974143,0.85401606,1039.1,1038.3,1.087]
[1759400976049,0.16753927,1039.0,1038.3,1.087]
[1759400977150,1.02155533,1039.0,1038.3,1.087]
[1759400977747,0.16753927,1039.0,1038.3,1.087]
[1759400981351,0.16753927,1039.0,1038.2,1.15]
[1759400984150,0.16753927,1039.0,1038.3,1.003]
[1759400987654,1.02155533,1039.0,1038.3,1.003]
[1759400988856,0.16753927,1039.0,1038.3,1.003]
[1759400998165,1.02155533,1039.0,1038.3,1.003]
[1759400998667,0.85401606,1038.9,1038.3,1.003]
[1759400999270,0.85401606,1038.6,1038.3,1.003]
[1759400999469,0.85401606,1038.5,1038.3,1.003]
[1759400999770,0.85401606,1038.6,1038.3,1.003]
[1759401004269,0.85401606,1038.7,1038.3,1.003]
[1759401004473,0.85401606,1038.8,1038.3,1.003]
[1759401004674,0.85401606,1038.6,1038.3,1.003]
[1759401004974,0.85401606,1038.5,1038.3,1.003]
[1759401005772,0.85401606,1038.6,1038.3,1.003]
[1759401007678,0.85401606,1038.4,1038.3,1.003]
[1759401008376,0.85401606,1038.5,1038.3,1.003]
[1759401008579,0.85401606,1038.7,1038.3,1.003]
[1759401009976,0.85401606,1038.9,1038.3,1.003]
[1759401014082,0.85401606,1038.7,1038.3,1.003]
[1759401015079,0.85401606,1038.5,1038.3,1.003]
[1759401015283,0.85401606,1038.6,1038.3,1.003]
[1759401017884,0.85401606,1038.7,1038.3,1.003]
[1759401018284,0.85401606,1038.8,1038.3,1.003]
[1759401018886,1.02155533,1039.0,1038.3,1.003]
[1759401019082,0.85401606,1038.9,1038.3,1.003]
[1759401019282,0.85401606,1038.7,1038.3,1.003]
[1759401020285,0.85401606,1038.6,1038.3,1.003]
[1759401021884,0.85401606,1038.7,1038.3,1.003]
[1759401024885,0.85401606,1038.8,1038.3,1.003]
[1759401026090,0.85401606,1038.8,1038.1,1.137]
[1759401026391,0.85401606,1038.9,1038.1,1.137]
[1759401028089,0.85401606,1038.8,1038.1,1.137]
[1759401028491,0.85401606,1038.8,1038.2,0.773]
[1759401029592,0.85401606,1038.7,1038.2,0.773]
[1759401035398,0.85401606,1038.8,1038.2,0.773]
[1759401044113,0.85401606,1038.7,1038.2,0.773]
[1759401046519,0.85401606,1038.6,1038.2,0.773]
[1759401046717,0.85401606,1038.7,1038.2,0.773]
[1759401047014,0.85401606,1038.9,1038.2,0.773]
[1759401052523,0.85401606,1038.9,1038.3,1.002]
[1759401052923,1.02155533,1039.0,1038.3,1.002]
[1759401055926,1.02155533,1039.0,1038.4,0.824]
[1759401056326,0.16753927,1039.0,1038.4,0.824]
[1759401056825,1.02155533,1039.0,1038.4,0.824]
[1759401057022,0.85401606,1038.9,1038.4,0.824]
[1759401057323,1.02155533,1039.0,1038.4,0.824]
[1759401057522,1.39931632,1038.9,1038.4,0.824]
[1759401057728,0.54530026,1038.8,1038.4,0.824]
[1759401057926,0.54530026,1038.7,1038.4,0.824]
[1759401058129,0.54530026,1038.6,1038.4,0.824]
[1759401058327,0.54530026,1038.5,1038.4,0.824]
[1759401073442,0.16753927,1039.0,1038.4,0.824]
[1759401073641,0.54503317,1038.9,1038.4,0.824]
[1759401073937,0.54503317,1038.8,1038.4,0.824]
[1759401074138,0.54503317,1038.7,1038.4,0.824]
[1759401074438,1.02154565,1039.2,1038.4,0.824]
[1759401074638,0.54503857,1039.1,1038.4,0.824]
[1759401074838,1.02154565,1039.2,1038.4,0.824]
[1759401074839,0.54503857,1039.0,1038.4,0.824]
[1759401075038,0.54503857,1038.9,1038.4,0.824]
[1759401075239,0.54503857,1038.8,1038.4,0.824]
[1759401075440,0.16752959,1039.2,1038.4,0.824]
[1759401075640,0.54259069,1039.1,1038.4,0.824]
[1759401075837,0.54259069,1039.0,1038.4,0.824]
[1759401076036,0.54259069,1038.9,1038.4,0.824]
[1759401076239,0.54259069,1038.8,1038.4,0.824]
[1759401076444,0.16752959,1039.2,1038.4,0.824]
[1759401076644,0.54244509,1039.1,1038.4,0.824]
[1759401076940,0.54244509,1039.0,1038.4,0.824]
[1759401077141,0.54244509,1038.9,1038.4,0.824]
[1759401077338,0.54244509,1038.8,1038.4,0.824]
[1759401077539,0.16752959,1039.2,1038.4,0.824]
[1759401077739,0.54229021,1039.1,1038.4,0.824]
[1759401077944,0.54229021,1039.0,1038.4,0.824]
[1759401078144,0.54229021,1038.9,1038.4,0.824]
[1759401078443,0.54229021,1038.8,1038.4,0.824]
[1759401078641,1.02152629,1039.3,1038.4,0.824]
[1759401078840,0.54215165,1039.2,1038.4,0.824]
[1759401079040,0.54215165,1039.1,1038.4,0.824]
[1759401079245,0.54215165,1039.0,1038.4,0.824]
[1759401079443,0.54215165,1038.9,1038.4,0.824]
[1759401079641,0.54215165,1038.8,1038.4,0.824]
[1759401079940,1.02152629,1039.3,1038.4,0.824]
[1759401080143,0.5420627,1039.2,1038.4,0.824]
[1759401080345,0.5420627,1039.1,1038.4,0.824]
[1759401080541,0.5420627,1039.0,1038.4,0.824]
[1759401080742,0.5420627,1038.9,1038.4,0.824]
[1759401080941,0.5420627,1038.8,1038.4,0.824]
[1759401081143,1.02152629,1039.3,1038.4,0.824]
[1759401081341,0.54191665,1039.2,1038.4,0.824]
[1759401081539,0.54191665,1039.1,1038.4,0.824]
[1759401081742,0.54191665,1039.0,1038.4,0.824]
[1759401082041,0.54191665,1038.9,1038.4,0.824]
[1759401082245,0.54191665,1038.8,1038.4,0.824]
[1759401082545,0.16751023,1039.3,1038.4,0.824]
[1759401082746,0.54200776,1039.2,1038.4,0.824]
[1759401082946,0.54200776,1039.1,1038.4,0.824]
[1759401083146,0.54200776,1039.0,1038.4,0.824]
[1759401083342,0.54200776,1038.9,1038.4,0.824]
[1759401083544,0.54200776,1038.8,1038.4,0.824]
[1759401083745,0.16751023,1039.3,1038.4,0.824]
[1759401083942,0.54196658,1039.2,1038.4,0.824]
[1759401084143,0.54196658,1039.1,1038.4,0.824]
[1759401084345,0.54196658,1039.0,1038.4,0.824]
[1759401084548,0.54196658,1038.9,1038.4,0.824]
[1759401084746,0.54196658,1038.8,1038.4,0.824]
[1759401084947,0.16751023,1039.3,1038.4,0.824]
[1759401085148,0.54176814,1039.2,1038.4,0.824]
[1759401085345,0.54176814,1039.1,1038.4,0.824]
[1759401085544,0.54176814,1039.0,1038.4,0.824]
[1759401085748,0.54176814,1038.9,1038.4,0.824]
[1759401085949,0.54176814,1038.8,1038.4,0.824]
[1759401086148,0.16751023,1039.3,1038.4,0.824]
[1759401086348,0.54161733,1039.2,1038.4,0.824]
[1759401086546,0.54161733,1039.1,1038.4,0.824]
[1759401086750,0.54161733,1039.0,1038.4,0.824]
[1759401087047,0.54161733,1038.9,1038.4,0.824]
[1759401087348,0.54161733,1038.8,1038.4,0.824]
[1759401087647,0.16751023,1039.3,1038.4,0.824]
[1759401087848,0.54156166,1039.2,1038.4,0.824]
[1759401088051,0.54156166,1039.1,1038.4,0.824]
[1759401088252,0.54156166,1039.0,1038.4,0.824]
[1759401088552,0.54156166,1038.9,1038.4,0.824]
[1759401088750,0.54156166,1038.8,1038.4,0.824]
[1759401088950,0.54156166,1038.7,1038.4,0.824]
[1759401089150,0.16751023,1039.3,1038.4,0.824]
[1759401089348,0.54150441,1039.2,1038.4,0.824]
[1759401089551,0.54150441,1039.1,1038.4,0.824]
[1759401089852,0.54150441,1039.0,1038.4,0.824]
[1759401090053,0.54150441,1038.9,1038.4,0.824]
[1759401090352,0.54150441,1038.8,1038.4,0.824]
[1759401090553,0.54150441,1038.7,1038.4,0.824]
[1759401090749,0.54136477,1038.6,1038.4,0.824]
[1759401091053,0.85401606,1039.1,1038.4,0.824]
[1759401091254,0.54136298,1039.0,1038.4,0.824]
[1759401091453,0.54136298,1038.9,1038.4,0.824]
[1759401091650,0.54136298,1038.8,1038.4,0.824]
[1759401091854,0.54136298,1038.7,1038.4,0.824]
[1759401092056,0.54136298,1038.6,1038.4,0.824]
[1759401092355,0.85401606,1039.1,1038.4,0.824]
[1759401092560,0.5414972,1039.0,1038.4,0.824]
[1759401092757,0.5414972,1038.9,1038.4,0.824]
[1759401092958,0.5414972,1038.8,1038.4,0.824]
[1759401093161,0.5414972,1038.7,1038.4,0.824]
[1759401093358,0.5414972,1038.6,1038.4,0.824]
[1759401093557,0.85401606,1039.1,1038.4,0.824]
[1759401093761,0.54170203,1039.0,1038.4,0.824]
[1759401093959,0.54170203,1038.9,1038.4,0.824]
[1759401094161,0.54170203,1038.8,1038.4,0.824]
[1759401094365,0.54170203,1038.7,1038.4,0.824]
[1759401094665,0.54170203,1038.6,1038.4,0.824]
[1759401094866,0.85401606,1039.2,1038.4,0.824]
[1759401095165,0.54177294,1039.1,1038.4,0.824]
[1759401095365,0.54177294,1039.0,1038.4,0.824]
[1759401095565,0.54177294,1038.9,1038.4,0.824]
[1759401095866,0.54177294,1038.8,1038.4,0.824]
[1759401096065,0.54177294,1038.7,1037.3,38.73200308]
[1759401096365,0.54177294,1038.6,1038.5,1.156]
[1759401097164,0.54177294,1039.1,1038.5,1.156]
[1759401097367,0.54177294,1039.0,1038.5,1.156]
[1759401097664,0.54177294,1038.9,1038.6,0.765]
[1759401097864,0.54177294,1038.8,1038.6,0.765]
[1759401098166,0.54177294,1038.7,1038.6,0.765]
[1759401099062,0.54177294,1039.2,1038.6,0.765]
[1759401099267,0.54177294,1039.1,1038.6,0.765]
[1759401099567,0.54177294,1039.0,1038.6,0.765]
[1759401099764,0.54177294,1038.9,1038.6,0.765]
[1759401100063,0.54177294,1038.8,1038.6,0.765]
[1759401100267,0.16751023,1039.3,1038.6,0.765]
[1759401100463,0.54241636,1039.2,1038.6,0.765]
[1759401100663,0.54241636,1039.1,1038.6,0.765]
[1759401100967,0.16746348,1039.8,1038.6,0.765]
[1759401101168,0.54250482,1039.7,1038.6,0.765]
[1759401101367,0.16746348,1039.8,1038.6,0.765]
[1759401101368,0.54250482,1039.6,1038.6,0.765]
[1759401101569,0.54250482,1039.5,1038.6,0.765]
[1759401101864,0.54250482,1039.4,1038.6,0.765]
[1759401102068,0.54250482,1039.3,1038.6,0.765]
[1759401102368,0.16746348,1039.8,1038.6,0.765]
[1759401102664,0.54208203,1039.7,1038.6,0.765]
[1759401102866,0.54208203,1039.6,1038.6,0.765]
[1759401103168,0.54208203,1039.5,1038.6,0.765]
[1759401103365,0.54208203,1039.4,1038.6,0.765]
[1759401103568,0.54208203,1039.3,1038.6,0.765]
[1759401103866,0.16746348,1039.8,1038.6,0.765]
[1759401104067,0.54192408,1039.7,1038.6,0.765]
[1759401104266,0.54192408,1039.6,1038.6,0.765]
[1759401104470,0.54192408,1039.5,1038.6,0.765]
[1759401104672,0.54192408,1039.4,1038.6,0.765]
[1759401104871,0.54192408,1039.3,1038.6,0.765]
[1759401105171,0.54185035,1039.2,1038.6,0.765]
[1759401105373,0.16746348,1039.8,1038.6,0.765]
[1759401105672,0.53939475,1039.7,1038.6,0.765]
[1759401105868,0.53939475,1039.6,1038.6,0.765]
[1759401106068,0.53939475,1039.5,1038.6,0.765]
[1759401106272,0.53939475,1039.4,1038.6,0.765]
[1759401106568,0.53939475,1039.3,1038.6,0.765]
[1759401106769,0.16746348,1039.8,1038.6,0.765]
[1759401106972,0.53937967,1039.7,1038.6,0.765]
[1759401107170,0.16746348,1039.8,1038.6,0.765]
[1759401107171,0.53937967,1039.6,1038.6,0.765]
[1759401107373,0.53937967,1039.5,1038.6,0.765]
[1759401107570,0.53937967,1039.4,1038.6,0.765]
[1759401107772,0.53937967,1039.3,1038.6,0.765]
[1759401107973,0.16746348,1039.8,1038.6,0.765]
[1759401108169,0.53935293,1039.7,1038.6,0.765]
[1759401108370,0.53935293,1039.6,1038.6,0.765]
[1759401108570,0.53935293,1039.5,1038.6,0.765]
[1759401108770,0.53935293,1039.4,1038.6,0.765]
[1759401108970,0.16746348,1039.8,1038.6,0.765]
[1759401109172,0.53918762,1039.7,1038.6,0.765]
[1759401109374,0.53918762,1039.6,1038.6,0.765]
[1759401109574,0.53918762,1039.5,1038.6,0.765]
[1759401109774,0.53918762,1039.4,1038.6,0.765]
[1759401109973,0.16746348,1039.8,1038.6,0.765]
[1759401110170,0.53902521,1039.7,1038.6,0.765]
[1759401110369,0.53902521,1039.6,1038.6,0.765]
[1759401110575,0.53902521,1039.5,1038.6,0.765]
[1759401110870,0.53902521,1039.4,1038.6,0.765]
[1759401111171,0.16746348,1039.8,1038.6,0.765]
[1759401111370,0.53873962,1039.7,1038.6,0.765]
[1759401111573,0.53873962,1039.6,1038.6,0.765]
[1759401111771,0.53873962,1039.5,1038.6,0.765]
[1759401112073,0.53873962,1039.4,1038.6,0.765]
[1759401112274,0.16746348,1039.8,1038.6,0.765]
[1759401112472,0.5386557,1039.7,1038.6,0.765]
[1759401112771,0.5386557,1039.6,1038.6,0.765]
[1759401113074,0.5386557,1039.5,1038.6,0.765]
[1759401113275,0.5386557,1039.4,1038.6,0.765]
[1759401113474,0.16746348,1039.8,1038.6,0.765]
[1759401113770,0.53855806,1039.7,1038.6,0.765]
[1759401113975,0.53855806,1039.6,1038.6,0.765]
[1759401114176,0.53855806,1039.5,1038.6,0.765]
[1759401114376,0.16746348,1039.8,1038.6,0.765]
[1759401114573,0.53844248,1039.7,1038.6,0.765]
[1759401114874,0.53844248,1039.6,1038.6,0.765]
[1759401115075,0.53844248,1039.5,1038.6,0.765]
[1759401115376,1.02144248,1040.0,1038.6,0.765]
[1759401115673,0.53834551,1039.9,1038.6,0.765]
[1759401115875,0.53834551,1039.8,1038.6,0.765]
[1759401116076,0.53834551,1039.7,1038.6,0.765]
[1759401116276,0.53834551,1039.6,1038.6,0.765]
[1759401116478,0.53834551,1039.5,1038.6,0.765]
[1759401116775,1.02144248,1040.0,1038.6,0.765]
[1759401116977,0.53824722,1039.9,1038.6,0.765]
[1759401117177,0.53824722,1039.8,1038.6,0.765]
[1759401117377,0.53824722,1039.7,1038.6,0.765]
[1759401117578,0.53824722,1039.6,1038.6,0.765]
[1759401117877,0.53824722,1039.5,1038.6,0.765]
[1759401118075,1.02144248,1040.0,1038.6,0.765]
[1759401118273,0.53815373,1039.9,1038.6,0.765]
[1759401118476,0.53815373,1039.8,1038.6,0.765]
[1759401118674,0.53815373,1039.7,1038.6,0.765]
[1759401118878,0.53815373,1039.6,1038.6,0.765]
[1759401119076,0.53815373,1039.5,1038.6,0.765]
[1759401119280,0.16742642,1040.0,1038.6,0.765]
[1759401119477,0.53797157,1039.9,1038.6,0.765]
[1759401119680,0.53797157,1039.8,1038.6,0.765]
[1759401119881,0.53797157,1039.7,1038.6,0.765]
[1759401120076,0.53797157,1039.6,1038.6,0.765]
[1759401120377,0.53797157,1039.5,1038.6,0.765]
[1759401120579,0.16742642,1040.0,1038.6,0.765]
[1759401120782,0.53793996,1039.9,1038.6,0.765]
[1759401120979,0.53793996,1039.8,1038.6,0.765]
[1759401121178,0.53793996,1039.7,1038.6,0.765]
[1759401121480,0.16739541,1040.3,1038.6,0.765]
[1759401121680,0.53762209,1040.2,1038.6,0.765]
[1759401121879,0.53762209,1040.1,1038.6,0.765]
[1759401122080,0.53762209,1040.0,1038.6,0.765]
[1759401122280,0.53762209,1039.9,1038.6,0.765]
[1759401122584,0.16739541,1040.3,1038.6,0.765]
[1759401122781,0.53738018,1040.2,1038.6,0.765]
[1759401122982,0.53738018,1040.1,1038.6,0.765]
[1759401123181,0.53738018,1040.0,1038.6,0.765]
[1759401123379,0.16739541,1040.3,1038.6,0.765]
[1759401123380,0.53738018,1039.9,1038.6,0.765]
[1759401123579,0.16739541,1040.3,1038.6,0.765]
[1759401123778,0.53715375,1040.2,1038.6,0.765]
[1759401123983,0.53715375,1040.1,1038.6,0.765]
[1759401124179,0.53715375,1040.0,1038.6,0.765]
[1759401124383,0.53715375,1039.9,1038.6,0.765]
[1759401124581,0.16739541,1040.3,1038.6,0.765]
[1759401124784,0.53697121,1040.2,1038.7,0.75]
[1759401125078,0.53697121,1040.1,1038.7,0.75]
[1759401125282,0.53697121,1040.0,1038.7,0.75]
[1759401125480,0.53697121,1039.9,1038.7,0.75]
[1759401125683,0.16739541,1040.3,1038.7,0.75]
[1759401125886,0.53679008,1040.2,1038.7,0.75]
[1759401126080,0.53679008,1040.1,1038.7,0.75]
[1759401126380,0.53679008,1040.0,1038.7,0.75]
[1759401126585,0.53679008,1039.9,1038.7,0.75]
[1759401126783,0.16739541,1040.3,1038.7,0.75]
[1759401126982,0.53664029,1040.2,1038.7,0.75]
[1759401127282,0.53664029,1040.1,1038.7,0.75]
[1759401127484,0.53664029,1040.0,1038.7,0.75]
[1759401127686,0.53664029,1039.9,1038.7,0.75]
[1759401127884,0.16739541,1040.3,1038.7,0.75]
[1759401128287,0.53650096,1040.2,1038.7,0.75]
[1759401128485,0.53650096,1040.1,1038.7,0.75]
[1759401128686,0.53650096,1040.0,1038.7,0.75]
[1759401128981,0.53650096,1039.9,1038.7,0.75]
[1759401129185,0.53643029,1039.8,1038.7,0.75]
[1759401129383,0.16739541,1040.3,1038.7,0.75]
[1759401129682,0.53638508,1040.2,1038.7,0.75]
[1759401129887,0.53638508,1040.1,1038.7,0.75]
[1759401130088,0.53638508,1040.0,1038.7,0.75]
[1759401130289,0.53638508,1039.9,1038.7,0.75]
[1759401130485,0.53638508,1039.8,1038.7,0.75]
[1759401130684,0.16739541,1040.3,1038.7,0.75]
[1759401130986,0.53635968,1040.2,1038.8,0.886]
[1759401131185,0.53635968,1040.1,1038.8,0.886]
[1759401131386,0.53635968,1040.0,1038.8,0.886]
[1759401131584,0.53635968,1039.9,1038.8,0.886]
[1759401131786,0.53635968,1039.8,1038.8,0.886]
[1759401131988,0.16739541,1040.3,1038.8,0.886]
[1759401132189,0.53634723,1040.2,1038.8,0.886]
[1759401132386,0.53634723,1040.1,1038.8,0.886]
[1759401132589,0.53634723,1040.0,1038.8,0.886]
[1759401132885,0.53634723,1039.9,1038.8,0.886]
[1759401133186,0.53634723,1039.8,1038.8,0.886]
[1759401133386,0.16739541,1040.3,1038.8,0.886]
[1759401133588,0.53635117,1040.2,1038.8,0.886]
[1759401133789,0.53635117,1040.1,1038.8,0.886]
[1759401133988,0.53635117,1040.0,1038.8,0.886]
[1759401134187,0.53635117,1039.9,1038.8,0.886]
[1759401134385,0.53635117,1039.8,1038.8,0.886]
[1759401134685,0.16739541,1040.3,1038.8,0.886]
[1759401134888,0.53631758,1040.2,1038.8,0.886]
[1759401135087,0.53631758,1040.1,1038.8,0.886]
[1759401135385,0.53631758,1040.0,1038.8,0.886]
[1759401135583,0.53631758,1039.9,1038.8,0.886]
[1759401135786,0.53631758,1039.8,1038.8,0.886]
[1759401135986,0.16739541,1040.3,1038.8,0.886]
[1759401136189,0.53833914,1040.2,1038.8,0.886]
[1759401136388,0.53833914,1040.1,1038.8,0.886]
[1759401136591,0.53833914,1040.0,1038.8,0.886]
[1759401136790,0.53833914,1039.9,1038.8,0.886]
[1759401136990,0.53833914,1039.8,1038.8,0.886]
[1759401137291,0.16739541,1040.3,1038.8,0.886]
[1759401137489,0.53826624,1040.2,1038.8,0.886]
[1759401137689,0.53826624,1040.1,1038.8,0.886]
[1759401137887,0.53826624,1040.0,1038.8,0.886]
[1759401138086,0.16739541,1040.3,1038.8,0.886]
[1759401138087,0.53826624,1039.9,1038.8,0.886]
[1759401138290,0.53826624,1039.8,1038.8,0.886]
[1759401138487,0.16739541,1040.3,1038.8,0.886]
[1759401138688,0.53824546,1040.2,1038.8,0.886]
[1759401138891,0.53824546,1040.1,1038.8,0.886]
[1759401139091,0.53824546,1040.0,1038.8,0.886]
[1759401139287,0.53824546,1039.9,1038.8,0.886]
[1759401139492,0.53824546,1039.8,1038.8,0.886]
[1759401139690,0.16739541,1040.3,1038.8,0.886]
[1759401139889,0.53822761,1040.2,1038.8,0.886]
[1759401140093,0.53822761,1040.1,1038.8,0.886]
[1759401140293,0.53822761,1040.0,1038.8,0.886]
[1759401140492,0.53822761,1039.9,1038.8,0.886]
[1759401140692,0.16739541,1040.3,1038.8,0.886]
[1759401140893,0.53821385,1040.2,1038.8,0.886]
[1759401141193,0.53821385,1040.1,1038.8,0.886]
[1759401141395,0.53821385,1040.0,1038.8,0.886]
[1759401141593,0.53821385,1039.9,1038.8,0.886]
[1759401141894,0.16739541,1040.3,1038.8,0.886]
[1759401142093,0.53821501,1040.2,1038.8,0.886]
[1759401142295,0.53821501,1040.1,1038.8,0.886]
[1759401142493,0.53821501,1040.0,1038.8,0.886]
[1759401142696,0.53821501,1039.9,1038.8,0.886]
[1759401142897,0.16739541,1040.3,1038.8,0.886]
[1759401143198,0.53820812,1040.2,1038.8,0.886]
[1759401143397,0.53820812,1040.1,1038.8,0.886]
[1759401143693,0.53820812,1040.0,1038.8,0.886]
[1759401143898,0.16739541,1040.3,1038.8,0.886]
[1759401144100,0.53815498,1040.2,1038.8,0.886]
[1759401144298,0.53815498,1040.1,1038.8,0.886]
[1759401144595,0.53815498,1040.0,1038.8,0.886]
[1759401144799,0.16739541,1040.3,1038.8,0.886]
[1759401144998,0.53811311,1040.2,1038.8,0.886]
[1759401145199,0.53811311,1040.1,1038.8,0.886]
[1759401145399,0.53811311,1040.0,1038.8,0.886]
[1759401145597,0.16739541,1040.3,1038.8,0.886]
[1759401145800,0.53809553,1040.2,1038.8,0.886]